Cogmind - Beta 13 X2 @@@ ROGUE MODE // 2024.02.11 @ 21:28:20 // Winter2019/RPGLIKE Player: f3-rnm Result: Self-destructed Performance ------------- Evolutions (1) 500 Regions Visited (5) 1000 Robots Destroyed (40) 200 Value Destroyed (875) 875 Prototype IDs (25) 500 Alien Tech Used (0) 0 Bonus (300) 300 TOTAL SCORE: 3375 Bonus ------- Aligned with FarCom 300 Cogmind --------- Core Integrity 1188/1650 Matter 300/300 Energy 150/150 System Corruption 0% Temperature Cool (0) Movement Treading (160) Location -9/Exiles Parts ------- > --- POWER (1) -------- Light Angular Momentum Engine > --- PROPULSION (2) --- Light Treads Light Treads > --- UTILITY (4) ------ Improved Heat Sink Targeting Computer Phase Shifter Light Armor Plating > --- WEAPON (2) ------- Improved Light Cannon Improved Light Cannon > --- INVENTORY (3) ---- Autogun Rocket Launcher Makeshift Spear Peak State ------------ > --- POWER ------------ Light Angular Momentum Engine > --- PROPULSION ------- Light Treads Light Treads > --- UTILITY ---------- Improved Heat Sink Targeting Computer Phase Shifter Light Armor Plating > --- WEAPON ----------- Improved Light Cannon Improved Light Cannon > --- INVENTORY -------- Autogun Grenade Launcher Makeshift Spear [Rating: 21] Favorites ----------- Power Light Ion Engine Engine Light Ion Engine Propulsion Light Treads Treads Light Treads Flight Unit Improved Flight Unit Utility Targeting Computer Device Phase Shifter Processor Targeting Computer Protection Light Armor Plating Weapon Assault Rifle Energy Cannon Beam Cannon Ballistic Gun Assault Rifle Ballistic Cannon Improved Light Cannon Launcher Grenade Launcher Build | -11 -10 -10 -9 -9 -9 ------- Run | Yrd Mat Min Mat Min Exi Slots Evolved 5 | 3 1 . . 1 . Power . | . . . . . . Propulsion 1 | 1 . . . . . Utility 3 | 1 1 . . 1 . Weapon 1 | 1 . . . . . Parts Attached 27 | 5 5 3 9 5 . Power 3 | 1 . . 1 1 . Engine 3 | 1 . . 1 1 . Core . | . . . . . . Reactor . | . . . . . . Propulsion 7 | 2 1 . 3 1 . Treads 6 | 2 1 . 2 1 . Leg . | . . . . . . Wheel . | . . . . . . Hover . | . . . . . . Flight 1 | . . . 1 . . Utility 7 | . 3 1 . 3 . Device 2 | . . 1 . 1 . Storage . | . . . . . . Processor 4 | . 3 . . 1 . Hackware . | . . . . . . Protection 1 | . . . . 1 . Artifact . | . . . . . . Weapon 10 | 2 1 2 5 . . Energy Gun . | . . . . . . Energy Cannon 2 | . 1 . 1 . . Ballistic Gun 4 | 2 . 1 1 . . Ballistic Cannon 3 | . . . 3 . . Launcher 1 | . . 1 . . . Special Weapon . | . . . . . . Impact Weapon . | . . . . . . Slashing Weapon . | . . . . . . Piercing Weapon . | . . . . . . Special Melee Weapon . | . . . . . . Unidentified Prototypes 2 | . . . 2 . . Parts Lost 1 | . . . 1 . . Power . | . . . . . . Propulsion . | . . . . . . Utility . | . . . . . . Weapon 1 | . . . 1 . . Highest Loss Streak 1 | . . . 1 . . To Critical Strikes . | . . . . . . Average Slot Usage (%) 98 | . 95 100 99 99 100 Engine 12 | . 12 12 12 11 11 Treads 24 | . 26 25 25 22 22 Device 8 | . . 5 12 20 22 Processor 24 | . 28 31 25 12 11 Protection 2 | . . . . 10 11 Energy Cannon 6 | . 2 12 11 . . Ballistic Gun 9 | . 24 8 3 . . Ballistic Cannon 7 | . . . 9 22 22 Launcher 1 | . . 3 . . . Naked Turns . | . . . . . . Heaviest Build 22 | 7 8 9 16 22 22 Greatest Support 45 | 40 40 40 40 45 45 Greatest Overweight (x) . | . . . . . . Average Overweight (x) . | . . . . . . Largest Inventory Capacity 3 | 2 3 3 3 3 3 Average Capacity 2 | 2 2 3 3 3 3 Most Carried 3 | 2 3 3 3 3 3 Average Carried 2 | . . 3 2 3 3 Final Capacity 3 | 2 3 3 3 3 3 Final Carried 3 | . 3 3 3 3 3 Class Distribution -------------------- 74% | Mutant 25% | Scavenger-Mutant Dominant Class ---------------- Mutant | -10/Materials Mutant | -10/Mines Mutant | -9/Materials Scavenger-Mutant | -9/Mines Scavenger-Mutant | -9/Exiles Resources | -11 -10 -10 -9 -9 -9 ----------- Run | Yrd Mat Min Mat Min Exi Matter Collected 1255 | 187 426 261 176 205 . Remotely . | . . . . . . Salvage Created 1144 | . 485 159 385 115 . Parts 73 | . 39 5 23 6 . Haulers Intercepted 6 | . 2 . 4 . . Recyclers Shooed 2 | . . 1 1 . . Parts Field Recycled . | . . . . . . Retrieved Matter . | . . . . . . Parts Self-Destructed . | . . . . . . Prevented . | . . . . . . Kills | -11 -10 -10 -9 -9 -9 ------- Run | Yrd Mat Min Mat Min Exi Combat Hostiles Destroyed 44 | . 15 21 5 3 . Guns 23 | . 15 8 . . . Cannons 18 | . . 10 5 3 . AOE 3 | . . 3 . . . Classes Destroyed 12 | . 5 2 4 1 . Worker 1 | . . . 1 . . Builder 2 | . . . 2 . . Tunneler 1 | . 1 . . . . Hauler 6 | . 2 . 4 . . Recycler 1 | . . . . 1 . Operator 1 | . . . 1 . . Watcher 1 | . 1 . . . . Swarmer 11 | . 8 3 . . . Grunt 14 | . 7 . 4 3 . Sentry 1 | . . . 1 . . Demolisher 1 | . . 1 . . . Assembled 17 | . . 17 . . . Best Kill Streak 5 | . 5 4 2 3 . Combat Bots Only 5 | . 5 4 2 3 . Max Kills in Single Turn 3 | . 1 3 1 2 . Gunslinging . | . . . . . . Exploded 3 | . . 3 . . . Melee . | . . . . . . Uniques/NPCs Destroyed . | . . . . . . Combat | -11 -10 -10 -9 -9 -9 -------- Run | Yrd Mat Min Mat Min Exi Hostile Shots Fired 166 | . 80 71 14 1 . Missed 35 | . 20 14 1 . . Damage Taken 1890 | . 573 1107 198 12 . Core 1545 | . 456 916 164 9 . Absorbed by Shields . | . . . . . . Redirected to Core 1131 | . 353 654 115 9 . Core Remaining (%) 63 | 100 . 27 . . . Volleys Fired 171 | . 64 58 43 6 . Largest 2 | . 2 2 2 2 . Hottest 107 | . 80 80 107 78 . Shots Fired 341 | . 128 115 86 12 . Gun 179 | . 121 57 1 . . Cannon 161 | . 7 57 85 12 . Launcher 1 | . . 1 . . . Special . | . . . . . . Kinetic 236 | . 121 57 46 12 . Thermal 104 | . 7 57 40 . . Explosive 1 | . . 1 . . . Electromagnetic . | . . . . . . Robot Hit Streak 12 | . 12 8 9 5 . Robot Miss Streak 4 | . 4 3 3 3 . Penetration Max . | . . . . . . Secondary Targets 3 | . 3 . . . . Max Gunslinging Chain 1 | . 1 . . . . Shots Hit Robots 183 | . 80 73 24 6 . Core Hits 83 | . 28 37 14 4 . Critical Kills 1 | . . . 1 . . Critical Parts Destroyed . | . . . . . . Critical Strikes 1 | . . . 1 . . Meltdown 1 | . . . 1 . . Melee Attacks . | . . . . . . Impact . | . . . . . . Slashing . | . . . . . . Piercing . | . . . . . . Sneak Attacks . | . . . . . . Combat Hostiles . | . . . . . . Follow-up Attacks . | . . . . . . Damage Inflicted 3105 | . 1057 1274 590 184 . Guns 1446 | . 997 449 . . . Cannons 1470 | . 53 687 546 184 . Explosions 182 | . . 138 44 . . Melee . | . . . . . . Ramming 7 | . 7 . . . . Kinetic 1930 | . 997 449 300 184 . Thermal 986 | . 53 687 246 . . Explosive 138 | . . 138 . . . Electromagnetic 44 | . . . 44 . . Impact . | . . . . . . Slashing . | . . . . . . Piercing . | . . . . . . Highest Corruption . | . . . . . . Average Corruption . | . . . . . . Corruption Purged . | . . . . . . Corruption Blocked . | . . . . . . Overload Shots . | . . . . . . Overflow Damage 36 | . . 36 . . . Projectiles 10 | . . 10 . . . Explosions 26 | . . 26 . . . Melee . | . . . . . . Knockbacks 4 | . . . 3 1 . Impact . | . . . . . . Kinetic 4 | . . . 3 1 . Secondary . | . . . . . . Self-Inflicted Damage 44 | . . . 44 . . Shots 1 | . . . 1 . . Rammed 1 | . 1 . . . . Targets Rammed 1 | . 1 . . . . Kicked . | . . . . . . Crushed . | . . . . . . Highest Temperature 270 | . 48 226 270 30 . Average Temperature 71 | . 19 62 91 17 . Received Heat Transfer 494 | . 216 200 72 6 . Siege Activations . | . . . . . . Robots Corrupted . | . . . . . . Combat Hostiles . | . . . . . . Parts Fried . | . . . . . . Impact Corruptions . | . . . . . . Robots Melted 1 | . . . 1 . . Combat Hostiles . | . . . . . . Parts Melted 1 | . . . 1 . . Heat Transferred 1998 | . 111 1443 444 . . Parts Sabotaged . | . . . . . . Parts Stolen . | . . . . . . Parts Stripped . | . . . . . . Power Chain Reactions . | . . . . . . Missiles Intercepted . | . . . . . . Alert | -11 -10 -10 -9 -9 -9 ------- Run | Yrd Mat Min Mat Min Exi Peak Influence 266 | . 266 132 154 137 . Initial 60 | . . 54 . 60 . Average 77 | . 148 44 56 56 . Maximum Alert Level 1 | . 1 . . . . Low Security (%) 89 | 100 60 100 100 100 . Level 1 10 | . 39 . . . . Level 2 . | . . . . . . Level 3 . | . . . . . . Level 4 . | . . . . . . Level 5 . | . . . . . . High Security . | . . . . . . Max Security . | . . . . . . Squads Dispatched 4 | . 3 . 1 . . Investigation 4 | . 3 . 1 . . Extermination . | . . . . . . Reinforcement . | . . . . . . Assault . | . . . . . . Garrison . | . . . . . . Intercept . | . . . . . . Searches Triggered . | . . . . . . Construction Impeded . | . . . . . . Haulers Reinforced . | . . . . . . Active Scanning Responses . | . . . . . . Cargo Convoy Interrupts . | . . . . . . Stealth | -11 -10 -10 -9 -9 -9 --------- Run | Yrd Mat Min Mat Min Exi Distress Signals 3 | . 1 2 . . . Communications Jammed . | . . . . . . Distress Signals . | . . . . . . Times Spotted 56 | . 20 25 7 4 . Peak Tracking Total 4 | . 4 3 2 3 . Tactical Retreats 3 | . . 3 . . . Traps | -11 -10 -10 -9 -9 -9 ------- Run | Yrd Mat Min Mat Min Exi Traps Triggered 2 | . 1 . 1 . . Indirectly . | . . . . . . Trap Hack Attempts . | . . . . . . Triggered . | . . . . . . Disarmed . | . . . . . . Reprogrammed . | . . . . . . Reused . | . . . . . . Traps Extracted . | . . . . . . Installed . | . . . . . . Triggered . | . . . . . . Machines | -11 -10 -10 -9 -9 -9 ---------- Run | Yrd Mat Min Mat Min Exi Machines Disabled 6 | . . . 5 1 . Max in Single Turn 2 | . . . 2 1 . Machines Repaired . | . . . . . . Machines Dismantled . | . . . . . . Machines Sabotaged 1 | . 1 . . . . Overloaded Fab Kills . | . . . . . . Hacking | -11 -10 -10 -9 -9 -9 --------- Run | Yrd Mat Min Mat Min Exi Machines Accessed 7 | . 3 . 3 . 1 Terminals 6 | . 3 . 3 . . Fabricators . | . . . . . . Repair Stations . | . . . . . . Recycling Units . | . . . . . . Scanalyzers . | . . . . . . Garrison Access . | . . . . . . Total Hacks 13 | . 4 . 8 . 1 Successful 5 | . 2 . 2 . 1 Failed 8 | . 2 . 6 . . Catastrophic 2 | . . . 2 . . Database Lockouts . | . . . . . . Manual 12 | . 4 . 7 . 1 Terminals 12 | . 4 . 8 . . Fabricators . | . . . . . . Repair Stations . | . . . . . . Recycling Units . | . . . . . . Scanalyzers . | . . . . . . Garrison Access . | . . . . . . Terminal Hacks 3 | . . . 2 . 1 Record 1 | . . . 1 . . Branch Access Points 1 | . . . 1 . . Derelict Proto ID Bank 1 | . . . . . 1 Fabricator Hacks . | . . . . . . Repair Station Hacks . | . . . . . . Recycling Unit Hacks . | . . . . . . Scanalyzer . | . . . . . . Garrison Access Hacks . | . . . . . . Unauthorized Hacks 2 | . 2 . . . . Terminals 2 | . 2 . . . . Sabotage 2 | . 2 . . . . Fabricators . | . . . . . . Repair Stations . | . . . . . . Recycling Units . | . . . . . . Scanalyzers . | . . . . . . Garrison Access . | . . . . . . Data Cores Recovered . | . . . . . . Used . | . . . . . . Hacking Detections 4 | . 1 . 3 . . Full Trace Events . | . . . . . . Feedback Events . | . . . . . . Feedback Blocked . | . . . . . . Robot Schematics Acquired . | . . . . . . Robots Built . | . . . . . . Authchips . | . . . . . . Time . | . . . . . . Total Robot Build Rating . | . . . . . . Part Schematics Acquired . | . . . . . . Parts Built . | . . . . . . Authchips . | . . . . . . Time . | . . . . . . Total Part Build Rating . | . . . . . . Parts Repaired . | . . . . . . Time . | . . . . . . Parts Recycled . | . . . . . . Recycled Matter . | . . . . . . Retrieved Matter . | . . . . . . Retrieved Components . | . . . . . . Parts Scanalyzed . | . . . . . . Part Schematics Acquired . | . . . . . . Parts Damaged . | . . . . . . Bothacking | -11 -10 -10 -9 -9 -9 ------------ Run | Yrd Mat Min Mat Min Exi Used RIF Installer . | . . . . . . Robots Hacked . | . . . . . . Non-combat . | . . . . . . Combat . | . . . . . . Robot Hacks Applied . | . . . . . . Relay Couplers Released . | . . . . . . Fabnet Peak Effective % . | . . . . . . Robots Rewired . | . . . . . . Allies Hacked . | . . . . . . Hacks Repelled . | . . . . . . Allies | -11 -10 -10 -9 -9 -9 -------- Run | Yrd Mat Min Mat Min Exi Total Allies 3 | . . 3 . . . Largest Group 3 | . . 3 . . . Highest-Rated Group 40 | . . 40 . . . Highest-Rated Ally 16 | . . 16 . . . Total Orders . | . . . . . . Ally Attacks 3 | . . 3 . . . Total Damage 33 | . . 33 . . . Kills . | . . . . . . Allies Corrupted . | . . . . . . Allies Melted . | . . . . . . Intel | -11 -10 -10 -9 -9 -9 ------- Run | Yrd Mat Min Mat Min Exi Robot Analysis Total . | . . . . . . Derelict Logs Recovered 4 | . . 2 . 2 . Drone Launches . | . . . . . . Drone Recoveries . | . . . . . . Exploration | -11 -10 -10 -9 -9 -9 ------------- Run | Yrd Mat Min Mat Min Exi Turns Passed 4149 | 59 1093 1243 729 844 181 Spaces Moved 2049 | 37 550 555 299 495 113 Core 7 | 7 . . . . . Treads 2042 | 30 550 555 299 495 113 Legs . | . . . . . . Wheels . | . . . . . . Hover . | . . . . . . Flight . | . . . . . . Fastest Speed 50 | 50 160 160 160 160 160 Average Speed 159 | 139 160 160 160 160 160 Slowest Speed 160 | 160 160 160 160 160 160 Overloaded Moves . | . . . . . . Propulsion Burnouts . | . . . . . . Robots Hopped . | . . . . . . Cave-ins Triggered . | . . . . . . Exploration Rate (%) 58 | 4 82 90 37 98 39 Regions Visited 5 Branch Regions 3 Pre-discovered Areas 1 | . . 1 . . . Known Exits Taken 3 | . 1 1 1 . . Unknown Exits Taken 2 | 1 . . . 1 . Scrap Searched 2 | . . 1 . 1 . Spaces Dug . | . . . . . . Terrain Destroyed 57 | . . 8 47 2 . Melee . | . . . . . . Projectile 4 | . . . 2 2 . AOE 53 | . . 8 45 . . Terrain Rammed . | . . . . . . Walls Destroyed . | . . . . . . Machines Disabled . | . . . . . . Actions | -11 -10 -10 -9 -9 -9 --------- Run | Yrd Mat Min Mat Min Exi Total 2587 | 44 632 795 466 537 113 Wait 263 | . 4 161 91 7 . Move 2044 | 36 549 554 298 494 113 Hop . | . . . . . . Pick Up 9 | 3 2 1 2 1 . Fast Attach 14 | 2 3 1 6 2 . Attach 3 | 3 . . . . . Detach . | . . . . . . Swap 11 | . 2 2 4 3 . Drop 17 | . . 2 11 4 . Fire 171 | . 64 58 43 6 . Melee . | . . . . . . Ram . | . . . . . . Kick . | . . . . . . Crush 1 | . 1 . . . . Escape Stasis . | . . . . . . Rewire . | . . . . . . Trap . | . . . . . . Miscellaneous 54 | . 7 16 11 20 . Route ------- -11/Scrapyard -10/Materials (discovered 4 exits: *Mat x3 / *Min) -10/Mines -9/Materials (discovered 3 exits: *Mat / *Min x2) -9/Mines (discovered 3 exits: *Mat x2 / *Exi) -9/Exiles History --------- Turn | Location | Event 1 | -11/Scrapyard | Upgraded with Propulsion slot (x1) 1 | -11/Scrapyard | Upgraded with Utility slot (x1) 1 | -11/Scrapyard | Upgraded with Weapon slot (x1) 30 | -11/Scrapyard | Discovered new exit (range 14) 60 | -11/Scrapyard | Entered Materials 172 | -10/Materials | Discovered new exit (range 16) 301 | -10/Materials | Build established: Mutant 491 | -10/Materials | Reached level 2 577 | -10/Materials | Upgraded with Utility slot (x1) 619 | -10/Materials | Discovered new exit (range 5) 651 | -10/Materials | Identified exit to Materials 798 | -10/Materials | Discovered exit to Materials (range 8) 1129 | -10/Materials | Discovered new exit (range 16) 1151 | -10/Materials | Identified exit to Mines 1153 | -10/Materials | Entered Mines 1272 | -10/Mines | Learned Materials security intel 1422 | -10/Mines | Assisted by bots powering up and referring to "LRC-V3" 1495 | -10/Mines | Assembled infested the area 1500 | -10/Mines | Assisted by a Guerilla fighting off Assembled 1539 | -10/Mines | Lost 3 allies 1539 | -10/Mines | Reached level 3 1563 | -10/Mines | Core integrity fell below 50% 1886 | -10/Mines | A weapon hastily lodged in a ceiling crevice suddenly fell to the ground 2167 | -10/Mines | Learned location of Storage (-7) 2384 | -10/Mines | Discovered exit to Materials (range 9) 2396 | -10/Mines | Entered Materials 2397 | -9/Materials | Core integrity fell below 50% 2398 | -9/Materials | Reached level 4 2581 | -9/Materials | Discovered new exit (range 4) 2653 | -9/Materials | Identified exit to Materials 2931 | -9/Materials | Identified exit to Mines 3125 | -9/Materials | Entered Mines 3127 | -9/Mines | Reached level 5 3130 | -9/Mines | Upgraded with Utility slot (x1) 3157 | -9/Mines | Joined a pair of Derelicts in attacking an 0b10 outpost 3287 | -9/Mines | Discovered exit to Materials (range 8) 3423 | -9/Mines | Learned Materials stockpile data 3451 | -9/Mines | Learned Materials terminal intel 3477 | -9/Mines | Build established: Scavenger-Mutant 3655 | -9/Mines | Deemed a non-threat by the Exiles lab entrance 3655 | -9/Mines | Discovered new exit (range 5) 3760 | -9/Mines | Discovered exit to Materials (range 7) 3767 | -9/Mines | Received a Rocket Launcher from a helpful Derelict 3969 | -9/Mines | Entered Exiles 4008 | -9/Exiles | Met 8R-AWN 4035 | -9/Exiles | Met EX-HEX 4080 | -9/Exiles | Met EX-BIN 4097 | -9/Exiles | Aligned with FarCom system 4099 | -9/Exiles | Given EX-Vault access code 4139 | -9/Exiles | Opened EX-Vault 4150 | -9/Exiles | Self-destructed Last Messages --------------- Modified TNC 0b10 Alert Chip Cloak of Protection Skeleton Box Trap Reconfigurator Supersonic Drone Bay Army-in-a-Box PSU Rigger Chronowheel AWS/Thermal Latent Energy Streamer Gui. Plasma Cannon Firepult YOLO Cannon AWS/Gauss XL Autogun Array AWS/Autocannon Field Lobotomy Kit Longsword +1 Deploy-a-Sentry Map ----- +----------------------------------------------------+ | | | | | | | | | | | | | | | | | | | | | | | | | | | | | | | | | | | | | | | | | | | | | | | | | ??????????????????????#########??????????????????? | | ??????????????????????# @ ! #??????????????????? | | ??????????????????????# #??????????????????? | | ??????????????????????# % #??????????????????? | | ??????????????????????# X#??????????????????? | | ??????????????????????## ##??????????????????? | | ??????????????????????#X #???????????????????? | | ??????????????????????## #???????????????????? | | ???????????????????????# #???????????????????? | | ???????????????????????# #???#?##????????????? | | ???????????????????????# #??"""""????????????? | | ???????????????????????# ## """????????????? | | ???????????????????????# X""????????????? | | ???????????????????????# ## """????????????? | | ?????????????????####??# #??"""""????????????? | | ?????????????????"""""?# #???###?????????????? | | ?????????????????""" ## #???????????????????? | | ???????????????#""X" #???????????????????? | | ???????????????#" #???????????????????? | | ???????????????#" ## #???????????????????? | | ???????????????#""""""?# #?#########?????????? | | ?????????????????"###??# #?#"""""""#?????????? | | ???????????????????????# #?#"""""""#?????????? | | ???????????????????????# #?#"""""""#?????????? | | ??????????????????????## ###"" """"#?????????? | | ??????????????????????#" """"#?????????? | +----------------------------------------------------+ Best States ------------- Heat Dissipation 39 Energy Generation 18 Energy Capacity 265 Matter Stores 300 Matter Capacity 300 Sight Range 16 Terrain Scan Density 10 Armor Coverage 150 Phase Shifting 5 Evasion (%) 45 Targeting Accuracy 10 Recoil Reduction 2 Item Schematics ----------------- None Robot Schematics ------------------ None Fabricated ------------ Nothing Alien Tech Used ----------------- None Achievements -------------- None Challenges ------------ None RPGLIKE | -11 -10 -10 -9 -9 -9 --------- Run | Yrd Mat Min Mat Min Exi Levels Raised 4 | . 1 1 1 1 . XP Earned 9855 | 3000 2105 950 2600 850 350 XP Spent 8825 | 2950 1550 1425 1260 1640 . Upgrades 34 | 15 2 7 6 4 . Propulsion Slot 1 | 1 . . . . . Utility Slot 3 | 1 1 . . 1 . Weapon Slot 1 | 1 . . . . . Core Integrity 21 | 10 . 5 4 2 . Mass Support 1 | . . . . 1 . Inventory Capacity 3 | 2 1 . . . . Melee Accuracy 2 | . . . 2 . . KI Damage % 2 | . . 2 . . . Protomatter Created 403 | . 124 113 81 85 . Integrity Restored 1083 | . 150 249 243 441 . Core 1083 | . 150 249 243 441 . Protomatter Decayed 111 | . . 45 . 66 . Game ------ Seed CouplerArchitectRigger Manual? 0 Play Time 00:17:45 Cumulative 154.0 hours Start 2024.02.11 @ 21:10:58 End 2024.02.11 @ 21:28:20 Sessions 1 Manual Loads 0 Difficulty Rogue Special Mode Winter2019/RPGLIKE Game No. 168 Rogue 132 Adventurer 36 Explorer 0 Win Type - Total 9 Types 2/0/7/0/0/0/0/0/0 Lore% 55 Gallery% 79 Achievement% 68 Wizard Run 0 Options --------- ASCII 0 Keyboard 0 Movement Mouse Keybinds 0 Fullscreen 1 Font 18/SmallcapsGlow Map View 76x50 Zoom Use 0% Tactical HUD 1 Map Filters NONE Filters NONE Steam 1 RUN: 7f021c38-82dc-46ca-9d02-918defece04d